[Event "January 2 Late 2024"]
[Site "https://www.chess.com"]
[Date "2024.01.02"]
[Round "1"]
[White "Clarke, Matthew"]
[Black "Ghevondyan, Arman"]
[Result "1-0"]
[Board "218"]
[TimeControl "180+1"]
[WhiteFideId "3227804"]
[BlackFideId "13312073"]
[WhiteElo "2127"]
[BlackElo "2543"]
[WhiteTeam "AUS"]
[BlackTeam "ARM"]
[WhiteClock "0:00:09"]
[BlackClock "0:01:20"]

1. d4 {[%clk 0:03:00]}  Nf6 {[%clk 0:02:59]} 2. c4 {[%clk 0:02:58]}  g6 {[%clk 0:02:59]} 3. Nc3 {[%clk 0:02:56]}  d5 {[%clk 0:02:59]} 4. cxd5 {[%clk 0:02:56]}  Nxd5 {[%clk 0:03:00]} 5. e4 {[%clk 0:02:56]}  Nxc3 {[%clk 0:03:01]} 6. bxc3 {[%clk 0:02:57]}  Bg7 {[%clk 0:03:02]} 7. Bc4 {[%clk 0:02:57]}  O-O {[%clk 0:03:03]} 8. Ne2 {[%clk 0:02:57]}  c5 {[%clk 0:03:04]} 9. Be3 {[%clk 0:02:58]}  cxd4 {[%clk 0:03:05]} 10. cxd4 {[%clk 0:02:57]}  Nc6 {[%clk 0:03:05]} 11. O-O {[%clk 0:02:57]}  Na5 {[%clk 0:03:05]} 12. Bd3 {[%clk 0:02:52]}  Bg4 {[%clk 0:03:05]} 13. f3 {[%clk 0:02:51]}  Be6 {[%clk 0:03:06]} 14. Qa4 {[%clk 0:02:35]}  a6 {[%clk 0:03:01]} 15. Rad1 {[%clk 0:01:19]}  b5 {[%clk 0:03:00]} 16. Qc2 {[%clk 0:01:17]}  Rc8 {[%clk 0:02:59]} 17. Qb1 {[%clk 0:01:16]}  Bc4 {[%clk 0:02:58]} 18. d5 {[%clk 0:01:07]}  Bxd3 {[%clk 0:02:57]} 19. Rxd3 {[%clk 0:01:08]}  Nc4 {[%clk 0:02:58]} 20. Bd4 {[%clk 0:01:06]}  Bxd4+ {[%clk 0:02:53]} 21. Nxd4 {[%clk 0:01:07]}  Qb6 {[%clk 0:02:52]} 22. Kh1 {[%clk 0:01:06]}  Rfd8 {[%clk 0:02:49]} 23. Nc6 {[%clk 0:01:01]}  Rd7 {[%clk 0:02:43]} 24. Rc1 {[%clk 0:01:00]}  Qf2 {[%clk 0:02:35]} 25. Rc2 {[%clk 0:00:54]}  Qh4 {[%clk 0:02:35]} 26. g3 {[%clk 0:00:39]}  Qh5 {[%clk 0:02:31]} 27. Rf2 {[%clk 0:00:35]}  e5 {[%clk 0:02:19]} 28. Rc3 {[%clk 0:00:29]}  Kg7 {[%clk 0:02:07]} 29. a4 {[%clk 0:00:28]}  Rb7 {[%clk 0:02:05]} 30. axb5 {[%clk 0:00:28]}  Rxb5 {[%clk 0:02:06]} 31. Qg1 {[%clk 0:00:26]}  Nd6 {[%clk 0:02:03]} 32. Ra3 {[%clk 0:00:21]}  a5 {[%clk 0:01:55]} 33. Qa1 {[%clk 0:00:20]}  f6 {[%clk 0:01:53]} 34. Rxa5 {[%clk 0:00:20]}  Rxa5 {[%clk 0:01:52]} 35. Qxa5 {[%clk 0:00:21]}  Qh6 {[%clk 0:01:47]} 36. Qd2 {[%clk 0:00:17]}  Qh5 {[%clk 0:01:44]} 37. Qa2 {[%clk 0:00:16]}  Nf7 {[%clk 0:01:43]} 38. Kg2 {[%clk 0:00:14]}  Rc7 {[%clk 0:01:41]} 39. Qa5 {[%clk 0:00:14]}  Rd7 {[%clk 0:01:41]} 40. Qa8 {[%clk 0:00:11]}  Ng5 {[%clk 0:01:40]} 41. h4 {[%clk 0:00:11]}  Nf7 {[%clk 0:01:41]} 42. Qe8 {[%clk 0:00:11]}  Rb7 {[%clk 0:01:37]} 43. Ne7 {[%clk 0:00:12]}  Nh6 {[%clk 0:01:32]} 44. d6 {[%clk 0:00:08]}  g5 {[%clk 0:01:27]} 45. Qxh5 {[%clk 0:00:05]}  gxh4 {[%clk 0:01:28]} 46. gxh4 {[%clk 0:00:06]}  Rb3 {[%clk 0:01:27]} 47. Nf5+ {[%clk 0:00:06]}  Nxf5 {[%clk 0:01:27]} 48. Qxf5 {[%clk 0:00:07]}  Rd3 {[%clk 0:01:26]} 49. Qd7+ {[%clk 0:00:07]}  Kh6 {[%clk 0:01:24]} 50. Kh2 {[%clk 0:00:08]}  Rd1 {[%clk 0:01:22]} 51. Qe6 {[%clk 0:00:08]}  Kh5 {[%clk 0:01:20]} 52. Qf5+ {[%clk 0:00:08]}  Kh6 {[%clk 0:01:20]} 53. Qxf6+ {[%clk 0:00:08]}  Kh5 {[%clk 0:01:20]} 54. Qg5# {[%clk 0:00:09]} 1-0

[Event "January 2 Late 2024"]
[Site "https://www.chess.com"]
[Date "2024.01.02"]
[Round "1"]
[White "Martinez Reyes, Pedro Ramon"]
[Black "Jing, Andrew"]
[Result "0-1"]
[Board "219"]
[TimeControl "180+1"]
[WhiteFideId "3901807"]
[BlackFideId "30984076"]
[WhiteElo "2543"]
[BlackElo "2124"]
[WhiteTeam "VEN"]
[BlackTeam "USA"]
[WhiteClock "0:00:20"]
[BlackClock "0:01:25"]

1. e4 {[%clk 0:02:47]}  e5 {[%clk 0:02:56]} 2. Nf3 {[%clk 0:02:44]}  Nc6 {[%clk 0:02:55]} 3. Bc4 {[%clk 0:02:41]}  Nf6 {[%clk 0:02:54]} 4. Nc3 {[%clk 0:02:34]}  Nxe4 {[%clk 0:02:48]} 5. Nxe4 {[%clk 0:02:31]}  d5 {[%clk 0:02:48]} 6. Bd3 {[%clk 0:02:22]}  dxe4 {[%clk 0:02:43]} 7. Bxe4 {[%clk 0:02:23]}  Bd6 {[%clk 0:02:38]} 8. O-O {[%clk 0:02:22]}  f5 {[%clk 0:02:37]} 9. Bd5 {[%clk 0:02:13]}  e4 {[%clk 0:02:36]} 10. Re1 {[%clk 0:01:58]}  Ne7 {[%clk 0:02:29]} 11. Bxe4 {[%clk 0:01:52]}  fxe4 {[%clk 0:02:29]} 12. Rxe4 {[%clk 0:01:53]}  O-O {[%clk 0:02:29]} 13. d3 {[%clk 0:01:47]}  Bf5 {[%clk 0:02:29]} 14. Re1 {[%clk 0:01:42]}  Bg4 {[%clk 0:02:28]} 15. Re3 {[%clk 0:01:37]}  Nf5 {[%clk 0:02:28]} 16. Re4 {[%clk 0:01:30]}  Bxf3 {[%clk 0:02:27]} 17. Qxf3 {[%clk 0:01:29]}  Bc5 {[%clk 0:02:23]} 18. Rf4 {[%clk 0:01:24]}  Nd4 {[%clk 0:02:22]} 19. Rxf8+ {[%clk 0:01:21]}  Qxf8 {[%clk 0:02:22]} 20. Qd5+ {[%clk 0:01:04]}  Kh8 {[%clk 0:02:21]} 21. Be3 {[%clk 0:01:05]}  Ne2+ {[%clk 0:02:18]} 22. Kh1 {[%clk 0:00:56]}  Bxe3 {[%clk 0:02:18]} 23. fxe3 {[%clk 0:00:56]}  Qf2 {[%clk 0:02:17]} 24. Qf3 {[%clk 0:00:54]}  Qxf3 {[%clk 0:02:09]} 25. gxf3 {[%clk 0:00:55]}  Re8 {[%clk 0:02:08]} 26. e4 {[%clk 0:00:48]}  Nd4 {[%clk 0:02:07]} 27. Kg2 {[%clk 0:00:45]}  c5 {[%clk 0:01:59]} 28. c3 {[%clk 0:00:45]}  Ne6 {[%clk 0:01:58]} 29. Rd1 {[%clk 0:00:45]}  Rd8 {[%clk 0:01:58]} 30. Kf2 {[%clk 0:00:44]}  b6 {[%clk 0:01:56]} 31. Ke3 {[%clk 0:00:45]}  g5 {[%clk 0:01:55]} 32. d4 {[%clk 0:00:45]}  Kg7 {[%clk 0:01:53]} 33. d5 {[%clk 0:00:42]}  Nf4 {[%clk 0:01:54]} 34. Rg1 {[%clk 0:00:42]}  h6 {[%clk 0:01:52]} 35. c4 {[%clk 0:00:42]}  Kf6 {[%clk 0:01:52]} 36. a3 {[%clk 0:00:41]}  Ng6 {[%clk 0:01:52]} 37. b3 {[%clk 0:00:39]}  a5 {[%clk 0:01:51]} 38. Rb1 {[%clk 0:00:37]}  Ra8 {[%clk 0:01:49]} 39. b4 {[%clk 0:00:37]}  axb4 {[%clk 0:01:49]} 40. axb4 {[%clk 0:00:38]}  Ra3+ {[%clk 0:01:48]} 41. Kf2 {[%clk 0:00:39]}  Ra2+ {[%clk 0:01:45]} 42. Kg1 {[%clk 0:00:37]}  Rc2 {[%clk 0:01:40]} 43. bxc5 {[%clk 0:00:37]}  bxc5 {[%clk 0:01:40]} 44. Rb6+ {[%clk 0:00:38]}  Kg7 {[%clk 0:01:40]} 45. Rb7+ {[%clk 0:00:32]}  Kf8 {[%clk 0:01:40]} 46. Rb6 {[%clk 0:00:31]}  Ne5 {[%clk 0:01:36]} 47. Rxh6 {[%clk 0:00:28]}  Nxf3+ {[%clk 0:01:36]} 48. Kf1 {[%clk 0:00:28]}  Nxh2+ {[%clk 0:01:35]} 49. Ke1 {[%clk 0:00:29]}  Ng4 {[%clk 0:01:27]} 50. Rg6 {[%clk 0:00:26]}  Rxc4 {[%clk 0:01:27]} 51. d6 {[%clk 0:00:23]}  Rxe4+ {[%clk 0:01:27]} 52. Kd2 {[%clk 0:00:24]}  Ne5 {[%clk 0:01:25]} 53. Rxg5 {[%clk 0:00:22]}  Nf3+ {[%clk 0:01:24]} 54. Kd3 {[%clk 0:00:22]}  Nxg5 {[%clk 0:01:24]} 55. d7 {[%clk 0:00:20]}  Rd4+ {[%clk 0:01:25]} 0-1

[Event "January 2 Late 2024"]
[Site "https://www.chess.com"]
[Date "2024.01.02"]
[Round "1"]
[White "Pinero Rodriguez, Carlos Jose"]
[Black "Petersson, Kjell"]
[Result "1-0"]
[Board "221"]
[TimeControl "180+1"]
[WhiteFideId "3901726"]
[BlackFideId "1705148"]
[WhiteElo "2540"]
[BlackElo "2121"]
[WhiteTeam "VEN"]
[BlackTeam "SWE"]
[WhiteClock "0:00:25"]
[BlackClock "0:01:11"]

1. e4 {[%clk 0:02:59]}  c5 {[%clk 0:03:00]} 2. Nf3 {[%clk 0:02:55]}  d6 {[%clk 0:03:00]} 3. d4 {[%clk 0:02:54]}  cxd4 {[%clk 0:03:01]} 4. Nxd4 {[%clk 0:02:55]}  Nf6 {[%clk 0:03:01]} 5. Nc3 {[%clk 0:02:55]}  g6 {[%clk 0:03:02]} 6. Be3 {[%clk 0:02:48]}  Bg7 {[%clk 0:03:02]} 7. f3 {[%clk 0:02:49]}  O-O {[%clk 0:03:01]} 8. Bc4 {[%clk 0:02:49]}  Nc6 {[%clk 0:03:01]} 9. Bb3 {[%clk 0:02:48]}  Na5 {[%clk 0:02:46]} 10. Qd2 {[%clk 0:02:47]}  Nd7 {[%clk 0:02:38]} 11. h4 {[%clk 0:02:30]}  Nb6 {[%clk 0:02:37]} 12. Qe2 {[%clk 0:02:26]}  a6 {[%clk 0:02:35]} 13. h5 {[%clk 0:01:10]}  e5 {[%clk 0:02:34]} 14. hxg6 {[%clk 0:01:04]}  exd4 {[%clk 0:02:07]} 15. gxf7+ {[%clk 0:01:01]}  Kh8 {[%clk 0:02:04]} 16. O-O-O {[%clk 0:00:55]}  Nxb3+ {[%clk 0:01:51]} 17. axb3 {[%clk 0:00:54]}  dxc3 {[%clk 0:01:51]} 18. e5 {[%clk 0:00:36]}  cxb2+ {[%clk 0:01:48]} 19. Kb1 {[%clk 0:00:34]}  Bxe5 {[%clk 0:01:45]} 20. Bh6 {[%clk 0:00:25]}  Rxf7 {[%clk 0:01:44]} 21. Qxe5+ {[%clk 0:00:26]}  Qf6 {[%clk 0:01:36]} 22. Qe8+ {[%clk 0:00:24]}  Rf8 {[%clk 0:01:33]} 23. Qxf8+ {[%clk 0:00:23]}  Qxf8 {[%clk 0:01:34]} 24. Bxf8 {[%clk 0:00:23]}  Bf5 {[%clk 0:01:30]} 25. Bxd6 {[%clk 0:00:23]}  Rc8 {[%clk 0:01:29]} 26. Rd2 {[%clk 0:00:23]}  Rd8 {[%clk 0:01:21]} 27. Be5+ {[%clk 0:00:23]}  Kg8 {[%clk 0:01:18]} 28. Rxd8+ {[%clk 0:00:23]}  Kf7 {[%clk 0:01:18]} 29. Kxb2 {[%clk 0:00:23]}  Nd7 {[%clk 0:01:13]} 30. Rxd7+ {[%clk 0:00:23]}  Bxd7 {[%clk 0:01:12]} 31. Rxh7+ {[%clk 0:00:24]}  Ke6 {[%clk 0:01:13]} 32. Rxd7 {[%clk 0:00:24]}  Kxd7 {[%clk 0:01:11]} 33. f4 {[%clk 0:00:25]} 1-0

[Event "January 2 Late 2024"]
[Site "https://www.chess.com"]
[Date "2024.01.02"]
[Round "1"]
[White "Ismayil, Malak"]
[Black "Brandao, Marcius Gomes"]
[Result "1-0"]
[Board "225"]
[TimeControl "180+1"]
[WhiteFideId "13412604"]
[BlackFideId "2124980"]
[WhiteElo "2537"]
[BlackElo "2078"]
[WhiteTeam "AZE"]
[BlackTeam "BRA"]
[WhiteClock "0:00:31"]
[BlackClock "0:00:00"]

1. e4 {[%clk 0:03:00]}  c5 {[%clk 0:02:58]} 2. Nf3 {[%clk 0:03:00]}  Nc6 {[%clk 0:02:58]} 3. Bb5 {[%clk 0:03:01]}  g6 {[%clk 0:02:57]} 4. Bxc6 {[%clk 0:02:59]}  dxc6 {[%clk 0:02:57]} 5. Nc3 {[%clk 0:02:59]}  Bg7 {[%clk 0:02:56]} 6. d3 {[%clk 0:03:00]}  Nf6 {[%clk 0:02:55]} 7. Be3 {[%clk 0:03:00]}  Nd7 {[%clk 0:02:54]} 8. Qd2 {[%clk 0:03:00]}  h6 {[%clk 0:02:52]} 9. O-O {[%clk 0:02:59]}  e5 {[%clk 0:02:47]} 10. h3 {[%clk 0:02:55]}  b6 {[%clk 0:02:47]} 11. Ne2 {[%clk 0:02:54]}  Nf8 {[%clk 0:02:38]} 12. Rad1 {[%clk 0:02:53]}  Ne6 {[%clk 0:02:37]} 13. c3 {[%clk 0:02:53]}  Ba6 {[%clk 0:02:19]} 14. Rfe1 {[%clk 0:02:51]}  Qe7 {[%clk 0:02:13]} 15. d4 {[%clk 0:02:39]}  Bxe2 {[%clk 0:01:58]} 16. Qxe2 {[%clk 0:02:36]}  cxd4 {[%clk 0:01:55]} 17. cxd4 {[%clk 0:02:37]}  exd4 {[%clk 0:01:54]} 18. Nxd4 {[%clk 0:02:38]}  Nxd4 {[%clk 0:01:52]} 19. Bxd4 {[%clk 0:02:39]}  O-O {[%clk 0:01:47]} 20. Bxg7 {[%clk 0:02:32]}  Kxg7 {[%clk 0:01:47]} 21. Qe3 {[%clk 0:02:33]}  Rad8 {[%clk 0:01:39]} 22. Qc3+ {[%clk 0:02:31]}  Qf6 {[%clk 0:01:36]} 23. e5 {[%clk 0:02:30]}  Qe6 {[%clk 0:01:35]} 24. f4 {[%clk 0:02:16]}  Rd5 {[%clk 0:01:33]} 25. Rxd5 {[%clk 0:02:13]}  cxd5 {[%clk 0:01:24]} 26. Rd1 {[%clk 0:02:13]}  Rd8 {[%clk 0:01:23]} 27. Qd4 {[%clk 0:02:09]}  Rd7 {[%clk 0:01:21]} 28. Rd2 {[%clk 0:02:06]}  Kh7 {[%clk 0:01:21]} 29. Rf2 {[%clk 0:02:05]}  Rc7 {[%clk 0:01:13]} 30. g4 {[%clk 0:01:55]}  Rc4 {[%clk 0:01:13]} 31. Qd3 {[%clk 0:01:53]}  b5 {[%clk 0:00:58]} 32. b3 {[%clk 0:01:52]}  Rc1+ {[%clk 0:00:57]} 33. Kh2 {[%clk 0:01:49]}  b4 {[%clk 0:00:56]} 34. Qe3 {[%clk 0:01:46]}  Rc3 {[%clk 0:00:41]} 35. Qd4 {[%clk 0:01:43]}  a5 {[%clk 0:00:28]} 36. f5 {[%clk 0:01:40]}  gxf5 {[%clk 0:00:26]} 37. gxf5 {[%clk 0:01:41]}  Qe7 {[%clk 0:00:17]} 38. Qxd5 {[%clk 0:01:32]}  Re3 {[%clk 0:00:14]} 39. e6 {[%clk 0:00:36]}  Qh4 {[%clk 0:00:07]} 40. Qg2 {[%clk 0:00:30]}  fxe6 {[%clk 0:00:00]} 41. f6 {[%clk 0:00:31]} 1-0

[Event "January 2 Late 2024"]
[Site "https://www.chess.com"]
[Date "2024.01.02"]
[Round "1"]
[White "Pham, Le Thao Nguyen"]
[Black "Ardito, Andrew"]
[Result "1-0"]
[Board "227"]
[TimeControl "180+1"]
[WhiteFideId "12401226"]
[BlackFideId "2033976"]
[WhiteElo "2534"]
[BlackElo "2063"]
[WhiteTeam "VIE"]
[BlackTeam "USA"]
[WhiteClock "0:00:07"]
[BlackClock "0:00:12"]

1. d4 {[%clk 0:02:57]}  Nf6 {[%clk 0:02:57]} 2. Nf3 {[%clk 0:02:57]}  e6 {[%clk 0:02:56]} 3. Bf4 {[%clk 0:02:56]}  c5 {[%clk 0:02:52]} 4. e3 {[%clk 0:02:57]}  Nc6 {[%clk 0:02:52]} 5. c3 {[%clk 0:02:54]}  d5 {[%clk 0:02:48]} 6. Nbd2 {[%clk 0:02:53]}  Nh5 {[%clk 0:02:36]} 7. Be5 {[%clk 0:02:34]}  f6 {[%clk 0:02:26]} 8. Bg3 {[%clk 0:02:34]}  Nxg3 {[%clk 0:02:26]} 9. hxg3 {[%clk 0:02:34]}  Qb6 {[%clk 0:02:06]} 10. Qc2 {[%clk 0:02:30]}  Bd7 {[%clk 0:02:00]} 11. Nb3 {[%clk 0:01:30]}  c4 {[%clk 0:01:52]} 12. Nbd2 {[%clk 0:01:30]}  e5 {[%clk 0:01:37]} 13. dxe5 {[%clk 0:01:17]}  fxe5 {[%clk 0:01:30]} 14. e4 {[%clk 0:01:15]}  Bc5 {[%clk 0:01:23]} 15. O-O-O {[%clk 0:01:14]}  O-O-O {[%clk 0:01:03]} 16. exd5 {[%clk 0:01:13]}  Na5 {[%clk 0:01:03]} 17. Nxe5 {[%clk 0:01:01]}  Bxf2 {[%clk 0:01:02]} 18. Ndxc4 {[%clk 0:00:58]}  Nxc4 {[%clk 0:01:02]} 19. Nxc4 {[%clk 0:00:59]}  Qf6 {[%clk 0:01:01]} 20. Bd3 {[%clk 0:00:41]}  Bxg3 {[%clk 0:00:52]} 21. Rhf1 {[%clk 0:00:40]}  Qg5+ {[%clk 0:00:52]} 22. Kb1 {[%clk 0:00:41]}  h5 {[%clk 0:00:47]} 23. Bf5 {[%clk 0:00:36]}  h4 {[%clk 0:00:42]} 24. Bxd7+ {[%clk 0:00:23]}  Rxd7 {[%clk 0:00:42]} 25. Qa4 {[%clk 0:00:20]}  Qg6+ {[%clk 0:00:29]} 26. Ka1 {[%clk 0:00:20]}  a6 {[%clk 0:00:26]} 27. d6 {[%clk 0:00:11]}  Kd8 {[%clk 0:00:19]} 28. Qa5+ {[%clk 0:00:10]}  Ke8 {[%clk 0:00:19]} 29. Qc5 {[%clk 0:00:10]}  Bxd6 {[%clk 0:00:13]} 30. Nxd6+ {[%clk 0:00:10]}  Rxd6 {[%clk 0:00:12]} 31. Rxd6 {[%clk 0:00:09]}  Qg3 {[%clk 0:00:12]} 32. Qc8+ {[%clk 0:00:07]} 1-0

[Event "January 2 Late 2024"]
[Site "https://www.chess.com"]
[Date "2024.01.02"]
[Round "1"]
[White "Bongo Akanga Ndjila, Barthelemy"]
[Black "Tabuenca Mendataurigoitia, Daniel"]
[Result "0-1"]
[Board "232"]
[TimeControl "180+1"]
[WhiteFideId "10609431"]
[BlackFideId "24563617"]
[WhiteElo "2029"]
[BlackElo "2526"]
[WhiteTeam "GAB"]
[BlackTeam "ESP"]
[WhiteClock "0:00:00"]
[BlackClock "0:00:33"]

1. d4 {[%clk 0:02:56]}  d6 {[%clk 0:02:55]} 2. c4 {[%clk 0:02:55]}  e5 {[%clk 0:02:54]} 3. dxe5 {[%clk 0:02:53]}  dxe5 {[%clk 0:02:55]} 4. Qxd8+ {[%clk 0:02:53]}  Kxd8 {[%clk 0:02:56]} 5. e4 {[%clk 0:02:50]}  Be6 {[%clk 0:02:52]} 6. g3 {[%clk 0:02:49]}  c6 {[%clk 0:02:48]} 7. b3 {[%clk 0:02:48]}  f6 {[%clk 0:02:41]} 8. Bh3 {[%clk 0:02:48]}  Bxh3 {[%clk 0:02:39]} 9. Nxh3 {[%clk 0:02:49]}  a5 {[%clk 0:02:38]} 10. f3 {[%clk 0:02:47]}  Nd7 {[%clk 0:02:37]} 11. Be3 {[%clk 0:02:45]}  a4 {[%clk 0:02:35]} 12. bxa4 {[%clk 0:02:25]}  Rxa4 {[%clk 0:02:30]} 13. Nd2 {[%clk 0:02:24]}  Bb4 {[%clk 0:02:27]} 14. Ke2 {[%clk 0:01:44]}  Bxd2 {[%clk 0:02:18]} 15. Kxd2 {[%clk 0:01:42]}  Rxc4 {[%clk 0:02:18]} 16. a4 {[%clk 0:01:37]}  Ne7 {[%clk 0:02:05]} 17. Kd3 {[%clk 0:01:37]}  b5 {[%clk 0:01:58]} 18. axb5 {[%clk 0:01:33]}  cxb5 {[%clk 0:01:59]} 19. Rhb1 {[%clk 0:01:28]}  Nc8 {[%clk 0:01:43]} 20. Rxb5 {[%clk 0:01:25]}  Rc7 {[%clk 0:01:42]} 21. Ra8 {[%clk 0:01:20]}  Ke7 {[%clk 0:01:40]} 22. f4 {[%clk 0:00:52]}  Rd8 {[%clk 0:01:32]} 23. Ke2 {[%clk 0:00:38]}  Nd6 {[%clk 0:01:25]} 24. Rxd8 {[%clk 0:00:35]}  Kxd8 {[%clk 0:01:23]} 25. Rb4 {[%clk 0:00:28]}  Rc2+ {[%clk 0:01:23]} 26. Kf3 {[%clk 0:00:27]}  Rxh2 {[%clk 0:01:22]} 27. Nf2 {[%clk 0:00:26]}  h5 {[%clk 0:01:17]} 28. f5 {[%clk 0:00:16]}  h4 {[%clk 0:01:02]} 29. gxh4 {[%clk 0:00:13]}  Rxh4 {[%clk 0:01:02]} 30. Kg3 {[%clk 0:00:11]}  Nxf5+ {[%clk 0:01:01]} 31. Kf3 {[%clk 0:00:09]}  Nxe3 {[%clk 0:01:01]} 32. Kxe3 {[%clk 0:00:10]}  Ke7 {[%clk 0:01:01]} 33. Rb7 {[%clk 0:00:08]}  Ke6 {[%clk 0:01:01]} 34. Nd3 {[%clk 0:00:08]}  Rh3+ {[%clk 0:01:01]} 35. Ke2 {[%clk 0:00:06]}  g6 {[%clk 0:01:01]} 36. Nb4 {[%clk 0:00:05]}  f5 {[%clk 0:01:00]} 37. Nc6 {[%clk 0:00:04]}  Nc5 {[%clk 0:00:51]} 38. exf5+ {[%clk 0:00:05]}  Kxf5 {[%clk 0:00:43]} 39. Rb6 {[%clk 0:00:06]}  Kf4 {[%clk 0:00:38]} 40. Ne7 {[%clk 0:00:06]}  Rh2+ {[%clk 0:00:38]} 41. Kf1 {[%clk 0:00:06]}  g5 {[%clk 0:00:37]} 42. Rf6+ {[%clk 0:00:06]}  Ke4 {[%clk 0:00:37]} 43. Rg6 {[%clk 0:00:05]}  Kf4 {[%clk 0:00:37]} 44. Rf6+ {[%clk 0:00:05]}  Kg4 {[%clk 0:00:37]} 45. Rf5 {[%clk 0:00:04]}  Nd3 {[%clk 0:00:35]} 46. Kg1 {[%clk 0:00:00]}  Ra2 {[%clk 0:00:33]} 0-1

[Event "January 2 Late 2024"]
[Site "https://www.chess.com"]
[Date "2024.01.02"]
[Round "1"]
[White "Reinecke, Katharina"]
[Black "Dinu, Dumitru-Daniel"]
[Result "0-1"]
[Board "234"]
[TimeControl "180+1"]
[WhiteFideId "12929727"]
[BlackFideId "1208403"]
[WhiteElo "2018"]
[BlackElo "2524"]
[WhiteTeam "GER"]
[BlackTeam "ROU"]
[WhiteClock "0:00:05"]
[BlackClock "0:01:20"]

1. d4 {[%clk 0:02:57]}  Nf6 {[%clk 0:02:58]} 2. c4 {[%clk 0:02:51]}  e6 {[%clk 0:02:59]} 3. Nf3 {[%clk 0:02:49]}  b6 {[%clk 0:02:58]} 4. g3 {[%clk 0:02:48]}  Bb7 {[%clk 0:02:58]} 5. Bg2 {[%clk 0:02:47]}  Be7 {[%clk 0:02:59]} 6. O-O {[%clk 0:02:46]}  O-O {[%clk 0:02:59]} 7. Nbd2 {[%clk 0:02:41]}  c5 {[%clk 0:02:59]} 8. e3 {[%clk 0:02:17]}  d5 {[%clk 0:02:58]} 9. cxd5 {[%clk 0:02:15]}  Bxd5 {[%clk 0:02:55]} 10. b3 {[%clk 0:02:05]}  cxd4 {[%clk 0:02:54]} 11. Nxd4 {[%clk 0:02:02]}  Bxg2 {[%clk 0:02:54]} 12. Kxg2 {[%clk 0:02:01]}  Qd5+ {[%clk 0:02:46]} 13. Qf3 {[%clk 0:01:52]}  Nbd7 {[%clk 0:02:33]} 14. Qxd5 {[%clk 0:01:48]}  Nxd5 {[%clk 0:02:33]} 15. Bb2 {[%clk 0:01:42]}  Bf6 {[%clk 0:02:32]} 16. Rac1 {[%clk 0:01:36]}  Nc5 {[%clk 0:02:28]} 17. a3 {[%clk 0:01:21]}  Nd3 {[%clk 0:02:26]} 18. Rc2 {[%clk 0:01:10]}  Nxb2 {[%clk 0:02:24]} 19. Rxb2 {[%clk 0:01:10]}  Rac8 {[%clk 0:02:24]} 20. Nc4 {[%clk 0:00:56]}  Bxd4 {[%clk 0:02:17]} 21. exd4 {[%clk 0:00:55]}  Rfd8 {[%clk 0:02:17]} 22. Rd1 {[%clk 0:00:42]}  Rc7 {[%clk 0:02:03]} 23. Ne3 {[%clk 0:00:33]}  Rc3 {[%clk 0:01:57]} 24. Nxd5 {[%clk 0:00:22]}  Rxd5 {[%clk 0:01:56]} 25. f4 {[%clk 0:00:19]}  Kf8 {[%clk 0:01:55]} 26. Kf2 {[%clk 0:00:19]}  Ke7 {[%clk 0:01:54]} 27. h3 {[%clk 0:00:19]}  Kd7 {[%clk 0:01:52]} 28. h4 {[%clk 0:00:17]}  h5 {[%clk 0:01:51]} 29. Kg2 {[%clk 0:00:17]}  Kd6 {[%clk 0:01:45]} 30. Kf2 {[%clk 0:00:17]}  Rb5 {[%clk 0:01:45]} 31. Rdb1 {[%clk 0:00:14]}  Kd5 {[%clk 0:01:45]} 32. a4 {[%clk 0:00:14]}  Rb4 {[%clk 0:01:45]} 33. Rd2 {[%clk 0:00:10]}  Rbxb3 {[%clk 0:01:33]} 34. Rxb3 {[%clk 0:00:10]}  Rxb3 {[%clk 0:01:34]} 35. Rc2 {[%clk 0:00:08]}  f5 {[%clk 0:01:19]} 36. Rc7 {[%clk 0:00:08]}  g6 {[%clk 0:01:19]} 37. Rxa7 {[%clk 0:00:07]}  Kxd4 {[%clk 0:01:19]} 38. Rg7 {[%clk 0:00:07]}  Ke4 {[%clk 0:01:19]} 39. Rxg6 {[%clk 0:00:07]}  Rb2+ {[%clk 0:01:19]} 40. Ke1 {[%clk 0:00:07]}  Kf3 {[%clk 0:01:19]} 41. Rxe6 {[%clk 0:00:07]}  Kxg3 {[%clk 0:01:20]} 42. Re5 {[%clk 0:00:06]}  Kxf4 {[%clk 0:01:20]} 43. Rb5 {[%clk 0:00:06]}  Rxb5 {[%clk 0:01:20]} 44. axb5 {[%clk 0:00:06]}  Kg3 {[%clk 0:01:19]} 45. Ke2 {[%clk 0:00:06]}  Kxh4 {[%clk 0:01:20]} 46. Kf3 {[%clk 0:00:07]}  Kg5 {[%clk 0:01:20]} 47. Kf2 {[%clk 0:00:05]}  f4 {[%clk 0:01:20]} 0-1

[Event "January 2 Late 2024"]
[Site "https://www.chess.com"]
[Date "2024.01.02"]
[Round "1"]
[White "Leenhouts, Koen"]
[Black "Winkels, Marcel"]
[Result "1-0"]
[Board "235"]
[TimeControl "180+1"]
[WhiteFideId "1008439"]
[BlackFideId "1003887"]
[WhiteElo "2523"]
[BlackElo "2015"]
[WhiteTeam "NED"]
[BlackTeam "NED"]
[WhiteClock "0:01:14"]
[BlackClock "0:00:11"]

1. d4 {[%clk 0:02:55]}  Nf6 {[%clk 0:02:58]} 2. c4 {[%clk 0:02:53]}  g6 {[%clk 0:02:59]} 3. Nc3 {[%clk 0:02:52]}  d5 {[%clk 0:02:57]} 4. Bg5 {[%clk 0:02:52]}  Bg7 {[%clk 0:02:55]} 5. Bxf6 {[%clk 0:02:51]}  Bxf6 {[%clk 0:02:45]} 6. cxd5 {[%clk 0:02:51]}  c6 {[%clk 0:02:42]} 7. e4 {[%clk 0:02:49]}  cxd5 {[%clk 0:02:39]} 8. Bb5+ {[%clk 0:02:45]}  Bd7 {[%clk 0:02:32]} 9. Bxd7+ {[%clk 0:02:45]}  Qxd7 {[%clk 0:02:27]} 10. Nxd5 {[%clk 0:02:44]}  Bg7 {[%clk 0:02:26]} 11. Qf3 {[%clk 0:02:44]}  Nc6 {[%clk 0:02:07]} 12. Ne2 {[%clk 0:02:42]}  O-O {[%clk 0:01:39]} 13. O-O {[%clk 0:02:41]}  Rac8 {[%clk 0:01:24]} 14. Rad1 {[%clk 0:02:38]}  Kh8 {[%clk 0:01:20]} 15. Rfe1 {[%clk 0:02:32]}  e6 {[%clk 0:01:18]} 16. Nf6 {[%clk 0:02:32]}  Qe7 {[%clk 0:01:11]} 17. e5 {[%clk 0:02:30]}  Qb4 {[%clk 0:01:09]} 18. Qh3 {[%clk 0:02:19]}  h6 {[%clk 0:01:08]} 19. Ng4 {[%clk 0:02:13]}  Kh7 {[%clk 0:01:01]} 20. Qc3 {[%clk 0:01:56]}  Rfd8 {[%clk 0:00:57]} 21. Ne3 {[%clk 0:01:54]}  Qa4 {[%clk 0:00:44]} 22. b3 {[%clk 0:01:41]}  Qa3 {[%clk 0:00:41]} 23. Nc4 {[%clk 0:01:38]}  Qb4 {[%clk 0:00:30]} 24. Nd6 {[%clk 0:01:31]}  Rc7 {[%clk 0:00:24]} 25. Qf3 {[%clk 0:01:21]}  Rdd7 {[%clk 0:00:18]} 26. h4 {[%clk 0:01:16]}  Bf8 {[%clk 0:00:17]} 27. Ne8 {[%clk 0:01:15]}  Rc8 {[%clk 0:00:11]} 28. Nf6+ {[%clk 0:01:14]} 1-0